bitfinex/quotes_SOLUSD_20250206
["timestamp","ask_amount","ask_price","bid_price","bid_amount"]
[1738806171263,15.2308828,198.98,198.96,10.21290147]
[1738806172053,15.2308828,199.0,198.96,10.21290147]
[1738806172356,5.18083869,199.07,198.96,11.21290147]
[1738806172357,15.2308828,199.02,198.96,11.21290147]
[1738806172571,0.03,198.98,198.97,1.0]
[1738806172755,1.6626,199.07,198.97,10.21290147]
[1738806172756,15.2308828,199.0,198.97,10.21290147]
[1738806173469,15.2308828,198.98,198.97,10.21290147]
[1738806174341,15.2308828,198.99,198.97,23.83010344]
[1738806174833,14.7308828,198.99,198.97,23.83010344]
[1738806175862,15.2308828,198.99,198.97,23.83010344]
[1738806176641,15.2308828,198.99,198.94,34.04300493]
[1738806176960,15.2308828,198.95,198.94,34.04300493]
[1738806177262,15.2308828,198.98,198.94,34.04300493]
[1738806177440,15.2308828,198.99,198.94,34.04300493]
[1738806178866,14.7308828,198.98,198.94,34.04300493]
[1738806179156,6.0365,199.02,198.95,1.0]
[1738806179157,15.2308828,199.01,198.95,1.0]
[1738806179361,21.2673828,199.02,198.97,1.0]
[1738806179546,15.2308828,199.01,198.96,1.0]
[1738806180068,15.2308828,199.03,198.97,21.0]
[1738806180255,6.1955,199.07,199.04,1.0]
[1738806180569,16.8205828,199.09,199.04,1.0]
[1738806181138,1.5897,199.09,199.04,1.0]
[1738806181466,15.2308828,199.11,199.06,1.0]
[1738806181674,15.2308828,199.1,199.06,1.0]
[1738806181967,15.2308828,199.1,199.05,2.0]
[1738806182349,15.2308828,199.1,199.06,1.0]
[1738806182549,15.2308828,199.11,199.05,7.0238]
[1738806182854,15.2308828,199.14,199.08,1.0]
[1738806184164,0.03,199.18,199.12,16.2308828]
[1738806184362,0.03,199.18,199.14,1.0]
[1738806184553,0.03,199.18,199.13,2.0]
[1738806185144,0.03,199.18,199.14,1.0]
[1738806185443,15.2608828,199.18,199.12,1.0]
[1738806185661,15.2608828,199.18,199.11,2.0]
[1738806185880,15.2608828,199.18,199.09,13.41184853]
[1738806185881,15.2308828,199.14,199.09,1.0]
[1738806186772,15.2308828,199.14,199.08,2.0]
[1738806187170,15.2308828,199.14,199.09,1.0]
[1738806187353,0.03,199.18,199.1,13.41184853]
[1738806187354,15.2308828,199.17,199.1,13.41184853]
[1738806187671,5.0506,199.18,199.11,17.2308828]
[1738806187864,5.0506,199.18,199.11,16.2308828]
[1738806188064,5.0506,199.18,199.12,1.0]
[1738806188451,15.2308828,199.17,199.1,14.41184853]
[1738806188646,15.2308828,199.17,199.08,2.0]
[1738806188647,15.2308828,199.12,199.08,2.0]
[1738806188948,15.2308828,199.12,199.07,1.0]
[1738806189154,15.2308828,199.12,199.07,2.0]
[1738806189368,15.2308828,199.13,199.07,2.0]
[1738806189554,15.2308828,199.14,199.08,1.0]
[1738806189754,15.2308828,199.15,199.08,1.0]
[1738806189957,15.2308828,199.14,199.08,2.0]
[1738806190278,15.2308828,199.15,199.1,1.0]
[1738806190472,15.2308828,199.15,199.09,1.0]
[1738806191251,15.2308828,199.15,199.1,1.0]
[1738806191464,15.2308828,199.15,199.09,2.0]
[1738806191662,15.2308828,199.15,199.08,17.2308828]
[1738806191866,15.2308828,199.15,199.08,15.2308828]
[1738806192051,15.2308828,199.15,199.07,2.0]
[1738806192254,15.2308828,199.13,199.06,1.0]
[1738806192478,15.2308828,199.11,199.06,1.0]
[1738806192674,15.2308828,199.11,199.05,1.0]
[1738806192977,15.2308828,199.11,199.06,1.0]
[1738806193569,15.2308828,199.11,199.05,15.41184853]
[1738806193778,20.2531828,199.11,199.05,1.0]
[1738806193978,20.2531828,199.11,199.04,16.2308828]
[1738806194288,20.2531828,199.11,199.04,1.0]
[1738806194476,15.2308828,199.09,199.03,1.0]
[1738806195075,20.2537828,199.09,199.03,1.0]
[1738806195259,20.2537828,199.09,199.03,2.0]
[1738806195483,20.2537828,199.09,199.03,1.0]
[1738806196676,20.2537828,199.09,199.02,15.41184853]
[1738806196862,20.2537828,199.09,199.03,1.0]
[1738806197062,20.2537828,199.09,199.02,15.41184853]
[1738806197558,20.2537828,199.09,198.99,7.0251]
[1738806197559,15.2308828,199.06,198.99,7.0251]
[1738806197880,15.2308828,199.06,199.0,13.41184853]
[1738806198176,5.0229,199.09,198.98,0.063]
[1738806198177,15.2308828,199.03,198.98,0.063]
[1738806198377,15.2308828,199.03,198.98,13.47484853]
[1738806198584,15.2308828,199.03,198.98,1.063]
[1738806199172,15.2308828,199.03,198.98,0.063]
[1738806199371,15.2308828,199.03,198.98,1.063]
[1738806199572,15.2308828,199.03,198.98,2.063]
[1738806200470,15.2308828,199.07,199.01,1.0]
[1738806200680,15.2308828,199.07,198.99,13.41184853]
[1738806200861,15.2308828,199.05,198.99,13.41184853]
[1738806201379,15.2308828,199.05,199.0,1.0]
[1738806201681,15.2308828,199.09,199.03,2.0]
[1738806202383,15.2308828,199.09,199.03,1.0]
[1738806202592,15.2308828,199.07,199.02,1.0]
[1738806204381,15.2308828,199.09,199.03,1.0]
[1738806204782,15.2308828,199.09,199.04,1.0]
[1738806205791,15.2608828,199.11,199.05,14.41184853]
[1738806206287,20.2831828,199.11,199.05,1.0]
[1738806206490,15.2308828,199.09,199.04,1.0]
[1738806206890,15.2608828,199.11,199.04,2.0]
[1738806207191,0.03,199.11,199.06,1.0]
[1738806208072,0.03,199.11,199.06,2.0]
[1738806208280,0.03,199.11,199.06,1.0]
[1738806208571,0.03,199.11,199.06,2.0]
[1738806208968,0.03,199.11,199.08,1.0]
[1738806209282,0.03,199.11,199.08,2.0]
[1738806209485,0.03,199.11,199.09,1.0]
[1738806209995,0.03,199.11,199.08,1.0]
[1738806210369,0.03,199.11,199.05,2.0]
[1738806210871,15.2608828,199.11,199.04,8.2814]
[1738806211077,15.2608828,199.11,199.05,1.0]
[1738806211583,15.2608828,199.11,199.04,1.0]
[1738806211771,15.2308828,199.09,199.03,1.0]
[1738806211971,15.2308828,199.09,199.02,1.0]
[1738806212393,5.0231,199.08,199.02,14.41184853]
[1738806213599,15.2308828,199.07,199.01,1.0]
[1738806213776,15.2308828,199.05,198.98,2.063]
[1738806213975,15.2308828,199.05,198.98,0.063]
[1738806214290,15.2308828,199.05,199.0,1.0]
[1738806214596,15.2308828,199.05,198.99,1.0]
[1738806214991,15.2308828,199.05,198.98,29.70573133]
[1738806215171,15.2308828,199.05,198.98,28.70573133]
[1738806215377,15.2308828,199.05,198.98,30.70573133]
[1738806215876,5.0241,199.04,198.98,29.70573133]
[1738806216293,5.0241,199.04,198.98,30.70573133]
[1738806216497,15.2308828,199.05,198.98,30.70573133]
[1738806216498,15.2308828,199.1,199.06,1.0]
[1738806216674,5.0228,199.1,199.06,1.0]
[1738806216993,5.0228,199.1,199.08,1.0]
[1738806217195,5.0228,199.1,199.07,1.0]
[1738806217996,0.03,199.11,199.07,1.0]
[1738806218175,5.0523,199.11,199.07,1.0]
[1738806220505,0.03,199.11,199.09,2.0]
[1738806220796,0.03,199.11,199.1,2.0]
[1738806220986,0.03,199.11,199.1,17.2308828]
[1738806223305,0.03,199.11,199.1,2.0]
[1738806223811,0.03,199.11,199.07,2.0]
[1738806224108,0.03,199.11,199.08,1.0]
[1738806224300,0.03,199.11,199.07,1.0]
[1738806224486,0.03,199.11,199.07,2.0]
[1738806224685,0.03,199.11,199.07,1.0]
[1738806225094,0.03,199.11,199.07,2.0]
[1738806226299,0.03,199.11,199.07,1.0]
[1738806226486,0.03,199.11,199.07,2.0]
[1738806226688,0.03,199.11,199.07,1.0]
[1738806227207,0.03,199.11,199.06,1.0]
[1738806227805,0.03,199.11,199.05,2.0]
[1738806228107,0.03,199.11,199.05,1.0]
[1738806228108,15.2308828,199.1,199.05,1.0]
[1738806228278,15.2308828,199.09,199.04,2.0]
[1738806228882,15.2308828,199.09,199.05,1.0]
[1738806229805,5.0229,199.09,199.06,1.0]
[1738806229994,5.0524,199.11,199.06,16.2308828]
[1738806230308,5.0524,199.11,199.07,1.0]
[1738806230517,5.0524,199.11,199.06,16.2308828]
[1738806230804,20.2832828,199.11,199.05,2.0]
[1738806232113,20.2832828,199.11,199.03,15.2308828]
[1738806232114,15.2308828,199.06,199.02,2.0]
[1738806232290,15.2308828,199.06,199.0,1.0]
[1738806232485,15.2308828,199.1,198.99,1.0]
[1738806232486,15.2308828,199.04,198.99,1.0]
[1738806232703,15.2308828,199.01,198.98,0.063]
[1738806232885,15.2308828,199.02,198.98,1.063]
[1738806233923,15.2308828,199.03,198.98,1.063]
[1738806234511,17.5808,199.08,198.98,0.063]
[1738806234512,15.2308828,199.02,198.98,0.063]
[1738806235008,5.0248,199.01,198.98,0.063]
[1738806235987,20.2556828,199.01,198.98,0.063]
[1738806236194,15.2308828,199.02,198.98,0.063]
[1738806236497,20.2554828,199.02,198.99,1.0]
[1738806237406,20.2554828,199.02,198.98,0.063]
[1738806238206,20.2554828,199.02,198.98,1.063]
[1738806238407,5.0246,199.02,198.99,1.0]
[1738806239110,20.2554828,199.02,198.99,1.0]
[1738806241009,15.2308828,199.03,198.99,1.0]
[1738806241312,15.2308828,199.02,198.99,1.0]
[1738806242595,5.0248,199.01,198.99,1.0]
[1738806242795,20.2556828,199.01,198.99,1.0]
[1738806242995,20.2556828,199.01,198.98,0.063]
[1738806242996,15.2308828,199.0,198.98,0.063]
[1738806243214,15.2308828,198.99,198.98,0.063]
[1738806243509,20.2556828,199.01,198.98,0.063]
[1738806244988,15.2308828,199.0,198.98,0.063]
[1738806246002,5.0253,198.99,198.98,0.063]
[1738806246817,20.2561828,198.99,198.98,0.063]
[1738806247197,5.0253,198.99,198.98,0.063]
[1738806248011,15.2308828,198.99,198.98,0.063]
[1738806249323,20.2561828,198.99,198.98,0.063]
[1738806249816,5.0253,198.99,198.98,0.063]
[1738806250691,28.98729423,198.99,198.88,2.0]
[1738806250897,9.70240423,198.93,198.86,109.27920989]
[1738806251221,19.28489,198.99,198.86,108.27920989]
[1738806251222,5.0273,198.91,198.86,108.27920989]
[1738806251597,14.72970423,198.91,198.86,108.27920989]
[1738806252612,14.72970423,198.91,198.86,107.27920989]
[1738806252613,15.17240068,198.87,198.86,107.27920989]
[1738806253903,15.29789068,198.87,198.86,81.78250989]
[1738806254126,15.29789068,198.87,198.86,55.91030989]
[1738806254307,15.29789068,198.87,198.86,30.01060989]
[1738806254620,15.29789068,198.87,198.86,9.89e-06]
[1738806254921,20.57727068,198.87,198.86,9.89e-06]
[1738806255101,20.0,198.84,198.78,0.063]
[1738806255292,15.17240068,198.8,198.78,0.063]
[1738806256021,15.17240068,198.81,198.78,0.063]
[1738806257529,20.20240068,198.81,198.78,0.063]
[1738806260326,15.17240068,198.86,198.83,1.0]
[1738806260511,1.6234,198.9,198.83,1.0]
[1738806260512,5.0279,198.89,198.83,1.0]
[1738806260709,20.20030068,198.89,198.83,1.0]
[1738806260908,15.17240068,198.88,198.83,1.0]
[1738806261105,15.17240068,198.84,198.78,0.063]
[1738806261301,20.0,198.86,198.78,0.063]
[1738806261507,15.17240068,198.82,198.78,0.063]
[1738806262218,15.17240068,198.81,198.78,0.063]
[1738806262424,20.20220068,198.82,198.78,0.063]
[1738806262613,15.17240068,198.84,198.8,1.0]
[1738806263313,15.17240068,198.83,198.78,0.063]
[1738806263521,15.17240068,198.82,198.78,0.063]
[1738806263726,15.17240068,198.81,198.78,0.063]
[1738806264435,15.17240068,198.8,198.78,0.063]
[1738806264610,15.17240068,198.81,198.79,1.0]
[1738806264810,15.17240068,198.81,198.78,0.063]
[1738806265616,15.17240068,198.79,198.78,0.063]
[1738806265825,15.17240068,198.79,198.7,5.28358]
[1738806265826,15.17240068,198.78,198.7,15.17240068]
[1738806266024,1.0,198.83,198.7,15.17240068]
[1738806266025,15.17240068,198.76,198.7,15.17240068]
[1738806266232,15.17240068,198.76,198.69,8.1791]
[1738806266536,15.17240068,198.74,198.69,8.1791]
[1738806266749,15.17240068,198.74,198.69,6.589]
[1738806267228,15.17240068,198.73,198.66,15.17240068]
[1738806267428,15.17240068,198.73,198.66,13.41184853]
[1738806267655,5.0313,198.76,198.65,0.063]
[1738806267656,7.6107,198.75,198.65,0.063]
[1738806267821,15.17240068,198.66,198.65,0.063]
[1738806268530,15.17240068,198.7,198.65,0.063]
[1738806270034,20.20520068,198.7,198.65,0.063]
[1738806270334,15.17240068,198.69,198.65,0.063]
[1738806270744,5.0328,198.7,198.65,0.063]
[1738806270745,15.17240068,198.68,198.65,0.063]
[1738806271033,15.17240068,198.66,198.65,0.063]
[1738806271552,15.17240068,198.67,198.65,0.063]
[1738806271715,20.20600068,198.67,198.65,0.063]
[1738806275124,20.20550068,198.69,198.65,0.063]
[1738806276039,15.17240068,198.67,198.65,0.063]
[1738806277417,5.0337,198.66,198.65,0.063]
[1738806279024,5.15919,198.66,198.65,0.063]
[1738806279341,1.37647,198.65,198.58,0.063]
[1738806279563,15.17240068,198.59,198.58,0.063]
[1738806280620,20.20790068,198.59,198.58,0.063]
[1738806280952,21.58437068,198.59,198.58,0.063]
[1738806281163,20.58437068,198.59,198.58,0.063]
[1738806281928,20.20790068,198.59,198.58,0.063]
[1738806283643,21.58437068,198.59,198.58,0.063]
[1738806284746,20.58437068,198.59,198.58,0.063]
[1738806285543,5.0355,198.59,198.58,0.063]
[1738806285931,5.16099,198.59,198.58,0.063]
[1738806286247,6.41197,198.59,198.58,0.063]
[1738806286924,5.41197,198.59,198.58,0.063]
[1738806287319,6.41197,198.59,198.58,0.063]
[1738806288044,5.41197,198.59,198.58,0.063]
[1738806288549,6.41197,198.59,198.58,0.063]
[1738806289047,5.41197,198.59,198.58,0.063]
[1738806289750,6.41197,198.59,198.58,0.063]
[1738806292749,6.41197,198.59,198.58,0.0001]
[1738806293345,6.41197,198.59,198.55,0.03]
[1738806293346,21.25098,198.56,198.55,0.03]
[1738806293552,21.25098,198.56,198.51,3.14391406]
[1738806293553,0.12549,198.52,198.51,3.14391406]
[1738806293739,35.29789068,198.52,198.51,3.14391406]
[1738806293934,2.37647,198.49,198.45,0.063]
[1738806294137,15.29789068,198.46,198.45,0.063]
[1738806294545,15.17240068,198.46,198.45,0.063]
[1738806296441,16.54887068,198.46,198.45,0.063]
[1738806297141,15.54887068,198.46,198.45,0.063]
[1738806297640,16.54887068,198.46,198.45,0.063]
[1738806297954,16.54887068,198.46,198.38,0.0001]
[1738806297955,1.37647,198.39,198.38,0.0001]
[1738806298159,19.31240068,198.39,198.35,0.03]
[1738806298351,15.17240068,198.36,198.35,0.03]
[1738806298553,15.17240068,198.38,198.35,0.03]
[1738806300167,15.17240068,198.36,198.35,0.03]
[1738806300949,15.17240068,198.38,198.35,0.03]
[1738806301463,15.17240068,198.36,198.35,0.03]
[1738806302138,20.21370068,198.36,198.35,0.03]
[1738806304253,15.17240068,198.36,198.35,0.03]
[1738806306057,15.20240068,198.38,198.35,0.03]
[1738806306262,15.17240068,198.36,198.35,0.03]
[1738806307089,15.20240068,198.38,198.35,0.03]
[1738806307371,0.03,198.38,198.35,16.85060068]
[1738806307587,0.03,198.38,198.35,1.6782]
[1738806307873,15.20240068,198.38,198.35,1.6782]
[1738806308278,15.17240068,198.36,198.35,0.03]
[1738806311962,15.20240068,198.38,198.35,0.03]
[1738806314659,0.03,198.38,198.35,0.03]
[1738806316363,0.03,198.38,198.36,13.41184853]
[1738806316567,0.03,198.38,198.37,6.3493]
[1738806317461,0.03,198.38,198.37,19.76114853]
[1738806317666,0.03,198.38,198.37,35.18452921]
[1738806317880,0.03,198.38,198.37,19.76114853]
[1738806318084,0.03,198.38,198.37,6.3493]
[1738806318604,0.03,198.38,198.35,0.03]
[1738806318764,15.20240068,198.38,198.35,0.03]
[1738806319685,15.17240068,198.36,198.35,0.03]
[1738806324900,15.20240068,198.38,198.35,0.03]
[1738806325071,0.03,198.38,198.35,0.03]
[1738806325571,15.20240068,198.38,198.35,0.03]
[1738806326382,0.03,198.38,198.35,5.0715]
[1738806326890,0.03,198.38,198.37,20.0]
[1738806327069,0.03,198.38,198.37,33.41184853]
[1738806327269,0.03,198.38,198.37,48.58424921]
[1738806327577,15.17240068,198.5,198.41,20.0]
[1738806327874,2.5654,198.58,198.41,20.0]
[1738806327875,15.17240068,198.52,198.46,20.0]
[1738806328203,5.0363,198.56,198.49,15.17240068]
[1738806328204,15.17240068,198.56,198.49,15.17240068]
[1738806328489,15.20240068,198.58,198.49,15.17240068]
[1738806328676,24.35216142,198.57,198.5,5.0377]
[1738806329086,24.35216142,198.57,198.52,20.0]
[1738806330068,0.03,198.58,198.52,13.41184853]
[1738806330592,0.03,198.58,198.53,44.35216142]
[1738806330764,0.03,198.58,198.53,49.38896142]
[1738806334193,0.03,198.58,198.57,20.0]
[1738806334397,0.03,198.58,198.57,58.01498995]
[1738806335598,0.03,198.58,198.57,156.90196995]
[1738806336607,0.03,198.58,198.57,156.65098995]
[1738806336805,0.03,198.58,198.57,156.40000995]
[1738806337878,0.03,198.58,198.57,127.01184853]
[1738806339114,0.03,198.58,198.57,20.0]
[1738806340113,0.03,198.58,198.55,20.0]
[1738806340404,0.03,198.58,198.56,20.0]
[1738806341993,0.03,198.58,198.53,13.41184853]
[1738806342586,0.03,198.58,198.55,20.0]
[1738806342912,24.38216142,198.58,198.52,5.037]
[1738806343500,0.03,198.58,198.55,20.0]
[1738806343679,0.03,198.58,198.56,20.0]
[1738806343884,0.03,198.58,198.57,37.76400995]
[1738806344080,0.03,198.58,198.57,131.74047995]
[1738806344497,0.03,198.65,198.61,20.37647]
[1738806344686,0.03,198.65,198.64,20.0]
[1738806344894,0.03,198.65,198.64,33.41184853]
[1738806345401,0.03,198.65,198.64,57.76400995]
[1738806345787,0.03,198.65,198.64,62.79820995]
[1738806346708,0.03,198.65,198.64,63.30016995]
[1738806346883,0.03,198.72,198.68,20.0]
[1738806347210,0.03,198.72,198.71,44.35216142]
[1738806347745,0.03,198.72,198.71,20.0]
[1738806348517,0.03,198.72,198.69,37.76400995]
[1738806348686,0.03,198.72,198.68,6.3201]
[1738806348687,0.03,198.72,198.7,20.0]
[1738806348884,24.38216142,198.72,198.66,93.6]
[1738806349101,24.35216142,198.71,198.64,29.38626142]
[1738806349300,0.03,198.72,198.67,20.0]
[1738806349301,24.38216142,198.72,198.67,20.0]
[1738806349586,24.38216142,198.72,198.69,20.0]
[1738806349587,0.03,198.72,198.69,20.0]
[1738806350002,0.03,198.72,198.7,37.76400995]
[1738806350199,0.03,198.72,198.71,24.35216142]
[1738806352092,0.03,198.72,198.71,29.38456142]
[1738806353018,0.03,198.72,198.71,137.65306021]
[1738806353192,0.03,198.78,198.75,0.37647]
[1738806353394,0.03,198.78,198.77,24.35216142]
[1738806354840,0.03,198.78,198.77,20.0]
[1738806356637,0.03,198.78,198.74,13.41184853]
[1738806356848,0.03,198.78,198.73,29.38386142]
[1738806357208,0.03,198.78,198.77,20.0]
[1738806360104,0.03,198.78,198.77,57.76400995]
[1738806360310,0.03,198.78,198.77,58.01498995]
[1738806363037,0.03,198.78,198.77,151.86596995]
[1738806363236,0.03,198.86,198.82,0.25098]
[1738806363543,0.03,198.86,198.85,20.0]
[1738806365557,0.03,198.86,198.81,93.6]
[1738806366060,0.03,198.86,198.82,13.41184853]
[1738806366349,0.03,198.86,198.85,20.0]
[1738806370373,0.03,198.86,198.85,58.01498995]
[1738806370581,0.03,198.86,198.85,152.62010036]
[1738806370752,0.03,198.86,198.85,151.86596995]
[1738806371974,0.03,198.86,198.85,151.36400995]
[1738806372138,0.03,198.86,198.85,127.01184853]
[1738806372795,0.03,198.86,198.8,117.95216142]
[1738806373064,24.35216142,198.85,198.78,5.0305]
[1738806373366,24.35216142,198.85,198.79,13.41184853]
[1738806373659,0.03,198.86,198.79,13.41184853]
[1738806373660,0.03,198.86,198.83,20.0]
[1738806374357,0.03,198.86,198.79,131.61498995]
[1738806374358,0.03,198.86,198.82,20.0]
[1738806375158,24.35216142,198.85,198.82,20.0]
[1738806375939,24.35216142,198.83,198.77,0.063]
[1738806376143,0.03,198.86,198.77,0.063]
[1738806376144,24.35216142,198.81,198.77,0.063]
[1738806376345,24.35216142,198.81,198.78,20.0]
[1738806376564,24.35216142,198.82,198.78,20.0]
[1738806376864,24.35216142,198.82,198.77,0.063]
[1738806377469,5.0292,198.84,198.77,0.063]
[1738806377470,24.35216142,198.8,198.77,0.063]
[1738806377668,24.35216142,198.79,198.77,0.063]
[1738806378045,24.35216142,198.78,198.77,0.063]
[1738806378447,24.35216142,198.79,198.77,0.063]
[1738806378653,24.35216142,198.81,198.77,0.063]
[1738806378966,24.35216142,198.78,198.77,0.063]
[1738806380073,24.35216142,198.8,198.77,0.063]
[1738806380368,5.0597,198.82,198.77,0.063]
[1738806380369,0.03,198.82,198.77,0.063]
[1738806380764,24.38216142,198.82,198.77,0.063]
[1738806382289,0.03,198.82,198.81,57.76400995]
[1738806382451,0.03,198.82,198.81,62.79390995]
[1738806383383,0.03,198.82,198.81,63.17037995]
[1738806383587,0.03,198.82,198.81,156.89586995]
[1738806383894,0.03,198.86,198.85,58.26596995]
[1738806384106,0.03,198.86,198.85,151.86596995]
[1738806384679,0.03,198.86,198.85,156.89486995]
[1738806387696,0.03,198.86,198.85,158.12577062]
[1738806388191,0.03,198.86,198.85,156.89486995]
[1738806390709,0.03,198.86,198.85,136.64388995]
[1738806390992,0.03,198.86,198.85,131.36400995]
[1738806391190,0.03,198.86,198.85,93.6]
[1738806391695,0.03,198.86,198.83,29.38136142]
[1738806391997,0.03,198.86,198.84,13.41184853]
[1738806392168,24.35216142,198.9,198.85,0.50196]
[1738806392373,0.03,198.98,198.94,20.0]
[1738806392568,0.03,198.98,198.96,24.35216142]
[1738806392776,0.03,198.98,198.97,1.25558012]
[1738806393694,0.03,198.98,198.97,1.13009012]
[1738806393885,0.03,198.98,198.96,117.95216142]
[1738806394269,0.03,198.98,198.96,93.6]
[1738806395396,0.03,198.98,198.95,20.0]
[1738806396677,0.03,198.98,198.91,93.6]
[1738806397004,0.03,198.98,198.93,20.0]
[1738806399190,0.03,198.98,198.9,24.35216142]
[1738806399995,24.35216142,198.97,198.89,5.0278]
[1738806401376,24.35216142,198.97,198.9,24.35216142]
[1738806401692,0.03,198.98,198.92,24.35216142]
[1738806402197,0.03,198.98,198.9,24.35216142]
[1738806403103,0.03,198.98,198.9,29.37966142]
[1738806407601,0.03,198.98,198.9,24.35216142]
[1738806407908,1.5348,198.96,198.88,24.35216142]
[1738806408087,24.35216142,198.95,198.87,98.6281]
[1738806408283,24.35216142,198.95,198.87,5.0281]
[1738806408496,24.35216142,198.95,198.89,20.0]
[1738806409509,1.5348,198.96,198.86,29.38076142]
[1738806409510,24.35216142,198.93,198.86,24.35216142]
[1738806409713,29.37916142,198.93,198.86,24.35216142]
[1738806410424,29.37916142,198.93,198.87,20.0]
[1738806412506,29.37876142,198.95,198.86,24.35216142]
[1738806412689,1.5348,198.96,198.9,24.35216142]
[1738806414707,0.03,198.98,198.92,24.35216142]
[1738806416803,24.35216142,198.95,198.87,0.063]
[1738806417012,0.03,198.98,198.87,0.063]
[1738806417013,24.35216142,198.93,198.87,0.063]
[1738806417685,24.35216142,198.93,198.89,20.0]
[1738806419508,24.35216142,198.95,198.89,20.0]
[1738806420084,24.35216142,198.95,198.87,0.063]
[1738806420285,24.35216142,198.91,198.87,0.063]
[1738806420589,24.35216142,198.89,198.87,0.063]
[1738806421412,24.35216142,198.91,198.87,0.063]
[1738806421710,8.0806,198.92,198.87,0.063]
[1738806421711,24.35216142,198.89,198.87,0.063]
[1738806422212,29.37976142,198.91,198.87,0.063]
[1738806423289,24.35216142,198.89,198.87,0.063]
[1738806424398,5.0281,198.88,198.87,0.063]
[1738806425302,24.35216142,198.89,198.87,0.063]
[1738806425693,29.38006142,198.89,198.87,0.063]
[1738806427397,29.37966142,198.91,198.87,0.063]
[1738806427595,24.35216142,198.89,198.87,0.063]
[1738806428014,29.37966142,198.91,198.87,0.063]
[1738806428228,0.03,198.92,198.87,0.063]
[1738806428410,0.03,198.92,198.88,24.35216142]
[1738806432450,0.03,198.92,198.91,44.35216142]
[1738806433706,0.03,198.92,198.91,49.37946142]
[1738806436121,0.03,198.92,198.91,143.35593142]
[1738806436626,0.03,198.92,198.91,143.23044142]
[1738806438141,0.03,198.92,198.91,163.39376995]
[1738806438433,0.0001,198.92,198.91,168.30533725]
[1738806438921,0.03,198.98,198.91,168.30533725]
[1738806438922,0.03,198.98,198.96,0.25098]
[1738806439105,0.03,198.98,198.97,25.10580432]
[1738806439311,0.03,198.98,198.97,25.60776432]
[1738806440217,0.03,198.98,198.97,30.63356432]
[1738806440430,0.03,198.98,198.97,24.35216142]
[1738806440936,0.03,198.98,198.97,24.47765142]
[1738806441141,0.03,198.98,198.97,24.35216142]
[1738806443125,0.03,198.98,198.97,20.0]
[1738806443912,0.03,198.98,198.97,44.35216142]
[1738806444528,0.03,198.98,198.97,20.0]
[1738806445325,0.03,198.98,198.97,24.35216142]
[1738806445636,0.03,198.98,198.97,25.48233565]
[1738806446634,0.03,198.98,198.97,16.27502622]
[1738806447731,0.03,198.98,198.97,15.898512]
[1738806447935,0.03,198.98,198.97,15.14485199]
[1738806448611,0.03,198.98,198.96,98.626]
[1738806448612,0.03,198.98,198.96,93.6]
[1738806449756,0.03,198.98,198.97,20.0]
[1738806450250,0.03,198.98,198.97,35.14485199]
[1738806450619,0.03,198.98,198.97,36.275088]
[1738806452054,0.03,198.98,198.97,41.426378]
[1738806452239,0.0001,198.98,198.97,149.43822653]
[1738806452439,0.03,199.02,199.01,0.12549]
[1738806452621,0.03,199.02,199.01,16.02376555]
[1738806453018,0.03,199.02,199.01,123.41208408]
[1738806453219,0.03,199.02,199.01,122.65866052]
[1738806454117,0.0001,199.02,199.01,127.68346052]